[Event "*** SCC Grand Prix: Titled Tuesday Blitz"]
[Site "Chess.com"]
[Date "2020.09.08"]
[Round "4"]
[White "emiliocordova"]
[Black "Onischuk_V"]
[Result "1-0"]
[WhiteElo "2791"]
[BlackElo "2949"]
[TimeControl "180+1"]
[EndTime "10:41:09 PDT"]
[Termination "emiliocordova won by resignation"]

1. d4 {[%clk 0:02:43.9]} 1... d6 {[%clk 0:02:58.5]} 2. Nf3 {[%clk 0:02:44.8]}
2... g6 {[%clk 0:02:57.9]} 3. g3 {[%clk 0:02:45.4]} 3... Bg7 {[%clk 0:02:58.3]}
4. Bg2 {[%clk 0:02:46.1]} 4... Nf6 {[%clk 0:02:58.8]} 5. O-O {[%clk 0:02:46.8]}
5... O-O {[%clk 0:02:59.1]} 6. c4 {[%clk 0:02:47.6]} 6... Nc6 {[%clk 0:02:59.2]}
7. Nc3 {[%clk 0:02:48.2]} 7... e5 {[%clk 0:02:59.9]} 8. d5 {[%clk 0:02:46.9]}
8... Nb8 {[%clk 0:02:59.6]} 9. c5 {[%clk 0:02:46.5]} 9... Na6 {[%clk 0:02:59.5]}
10. cxd6 {[%clk 0:02:46.8]} 10... cxd6 {[%clk 0:02:59.8]} 11. Nd2 {[%clk
0:02:46.2]} 11... Ne8 {[%clk 0:03:00]} 12. Nc4 {[%clk 0:02:44.4]} 12... Bd7
{[%clk 0:02:56.9]} 13. a4 {[%clk 0:02:44.1]} 13... f5 {[%clk 0:02:52.1]} 14. Nb5
{[%clk 0:02:36.4]} 14... Qb8 {[%clk 0:02:43.8]} 15. b3 {[%clk 0:02:35.3]} 15...
Nc5 {[%clk 0:02:36]} 16. Ba3 {[%clk 0:02:33.2]} 16... b6 {[%clk 0:02:34.5]} 17.
Rc1 {[%clk 0:01:54.2]} 17... a6 {[%clk 0:02:30.8]} 18. Nc3 {[%clk 0:01:53.2]}
18... b5 {[%clk 0:02:05.9]} 19. b4 {[%clk 0:01:28.4]} 19... Nxa4 {[%clk
0:01:56.7]} 20. Nxa4 {[%clk 0:01:28.3]} 20... bxc4 {[%clk 0:01:49.4]} 21. Nb2
{[%clk 0:01:28.2]} 21... c3 {[%clk 0:01:32]} 22. Rxc3 {[%clk 0:01:27]} 22... e4
{[%clk 0:01:32.2]} 23. Rc1 {[%clk 0:01:24.8]} 23... Nc7 {[%clk 0:01:31.5]} 24.
Nc4 {[%clk 0:01:22.5]} 24... Nb5 {[%clk 0:01:31.6]} 25. Bb2 {[%clk 0:01:19.8]}
25... Bxb2 {[%clk 0:01:29.9]} 26. Nxb2 {[%clk 0:01:20.7]} 26... Qd8 {[%clk
0:01:20.9]} 27. Qd2 {[%clk 0:01:19.3]} 27... Qf6 {[%clk 0:01:20.2]} 28. Nc4
{[%clk 0:01:18.2]} 28... Rfc8 {[%clk 0:01:19.6]} 29. Nb6 {[%clk 0:01:17.3]}
29... Rxc1 {[%clk 0:01:15]} 30. Rxc1 {[%clk 0:01:18.2]} 30... Rd8 {[%clk
0:01:11.4]} 31. e3 {[%clk 0:01:11.8]} 31... Be8 {[%clk 0:01:09.6]} 32. Bf1
{[%clk 0:01:05.5]} 32... Rb8 {[%clk 0:01:08.8]} 33. Nc4 {[%clk 0:01:05.1]} 33...
Rc8 {[%clk 0:01:04.6]} 34. Na5 {[%clk 0:01:00]} 34... Rxc1 {[%clk 0:01:03.5]}
35. Qxc1 {[%clk 0:01:00.9]} 35... Qc3 {[%clk 0:00:58.4]} 36. Qxc3 {[%clk
0:01:00.4]} 36... Nxc3 {[%clk 0:00:58.6]} 37. Bxa6 {[%clk 0:01:01]} 37... Kf8
{[%clk 0:00:49.6]} 38. Bc4 {[%clk 0:00:56.6]} 38... Ke7 {[%clk 0:00:46.9]} 39.
Kf1 {[%clk 0:00:48.2]} 39... Bf7 {[%clk 0:00:37.1]} 40. Ke1 {[%clk 0:00:39]}
40... Bxd5 {[%clk 0:00:35.5]} 41. Kd2 {[%clk 0:00:36]} 41... Nb1+ {[%clk
0:00:34.1]} 42. Kc1 {[%clk 0:00:36.1]} 42... Nc3 {[%clk 0:00:33.3]} 43. Kc2
{[%clk 0:00:35.6]} 43... Bxc4 {[%clk 0:00:19.7]} 44. Kxc3 {[%clk 0:00:36.5]}
44... Bb5 {[%clk 0:00:19.6]} 45. Kd4 {[%clk 0:00:36.3]} 45... Kd7 {[%clk
0:00:19.7]} 46. h4 {[%clk 0:00:33.2]} 46... Kc7 {[%clk 0:00:19]} 47. Nc4 {[%clk
0:00:32]} 47... Kc6 {[%clk 0:00:18.6]} 48. Nb2 {[%clk 0:00:29.8]} 48... h6
{[%clk 0:00:18.3]} 49. Nd1 {[%clk 0:00:29.5]} 49... Ba4 {[%clk 0:00:17.4]} 50.
Nc3 {[%clk 0:00:29.8]} 50... Bb3 {[%clk 0:00:17.7]} 51. Ne2 {[%clk 0:00:19.8]}
51... g5 {[%clk 0:00:16.8]} 52. hxg5 {[%clk 0:00:20.1]} 52... hxg5 {[%clk
0:00:15.7]} 53. Ng1 {[%clk 0:00:20.1]} 53... Kb5 {[%clk 0:00:07.3]} 54. Kc3
{[%clk 0:00:19.9]} 54... Bf7 {[%clk 0:00:06.7]} 55. Nh3 {[%clk 0:00:20.2]} 55...
g4 {[%clk 0:00:07.1]} 56. Nf4 {[%clk 0:00:20.1]} 56... d5 {[%clk 0:00:06.3]} 57.
Ne2 {[%clk 0:00:19.2]} 57... Kb6 {[%clk 0:00:05.5]} 58. Nd4 {[%clk 0:00:20.1]}
58... Bg6 {[%clk 0:00:05.3]} 59. Kb3 {[%clk 0:00:19.3]} 59... Bh7 {[%clk
0:00:05]} 60. Kc3 {[%clk 0:00:19.8]} 60... Bg6 {[%clk 0:00:05.1]} 61. Nb3 {[%clk
0:00:19.7]} 61... Bf7 {[%clk 0:00:04.5]} 62. Nc1 {[%clk 0:00:19.2]} 62... Kb5
{[%clk 0:00:04.7]} 63. Ne2 {[%clk 0:00:19.2]} 63... Kb6 {[%clk 0:00:05.2]} 64.
Kd4 {[%clk 0:00:19.3]} 64... Kb5 {[%clk 0:00:05.3]} 65. Nc3+ {[%clk 0:00:19.8]}
65... Kxb4 {[%clk 0:00:05.6]} 66. Nxd5+ {[%clk 0:00:20.5]} 66... Kb3 {[%clk
0:00:06.1]} 67. Ne7 {[%clk 0:00:20.7]} 67... Kc2 {[%clk 0:00:05.3]} 68. Nxf5
{[%clk 0:00:20.3]} 68... Kd2 {[%clk 0:00:05.5]} 69. Kxe4 {[%clk 0:00:20.7]}
69... Ke2 {[%clk 0:00:05.4]} 70. Kf4 {[%clk 0:00:21.3]} 70... Kxf2 {[%clk
0:00:05.5]} 71. Nh6 {[%clk 0:00:21.8]} 71... Be6 {[%clk 0:00:04.4]} 72. Nxg4+
{[%clk 0:00:22.7]} 72... Ke2 {[%clk 0:00:04.4]} 73. Ne5 {[%clk 0:00:22.6]} 73...
Kf2 {[%clk 0:00:03.9]} 74. g4 {[%clk 0:00:22.9]} 1-0

[Event "*** SCC Grand Prix: Titled Tuesday Blitz"]
[Site "Chess.com"]
[Date "2020.09.08"]
[Round "4"]
[White "Caracternin123"]
[Black "Izoria123"]
[Result "0-1"]
[WhiteElo "2694"]
[BlackElo "2881"]
[TimeControl "180+1"]
[EndTime "10:41:09 PDT"]
[Termination "Izoria123 won by checkmate"]

1. d4 {[%clk 0:03:00.9]} 1... d6 {[%clk 0:02:59.5]} 2. Nf3 {[%clk 0:03:00.9]}
2... g6 {[%clk 0:02:59.2]} 3. g3 {[%clk 0:03:01.3]} 3... Bg7 {[%clk 0:02:59.7]}
4. Bg2 {[%clk 0:03:01.7]} 4... Nf6 {[%clk 0:02:59]} 5. O-O {[%clk 0:03:02.1]}
5... O-O {[%clk 0:02:59.6]} 6. c4 {[%clk 0:03:02.4]} 6... c6 {[%clk 0:02:58.2]}
7. Nc3 {[%clk 0:03:02.6]} 7... Qa5 {[%clk 0:02:57.5]} 8. Bd2 {[%clk 0:03:00.3]}
8... Qh5 {[%clk 0:02:55.1]} 9. Nh4 {[%clk 0:03:00.6]} 9... g5 {[%clk 0:02:50.5]}
10. Nf3 {[%clk 0:02:59.8]} 10... h6 {[%clk 0:02:51.1]} 11. h4 {[%clk 0:02:59.9]}
11... Nh7 {[%clk 0:02:14.9]} 12. e3 {[%clk 0:01:32.3]} 12... Bg4 {[%clk
0:02:12.6]} 13. Be1 {[%clk 0:01:15.2]} 13... Nd7 {[%clk 0:02:08.9]} 14. Ne4
{[%clk 0:01:14.3]} 14... f5 {[%clk 0:01:51.9]} 15. Ned2 {[%clk 0:01:13.9]} 15...
gxh4 {[%clk 0:01:51.7]} 16. gxh4 {[%clk 0:01:12.7]} 16... f4 {[%clk 0:01:48.2]}
17. Qc2 {[%clk 0:01:08.7]} 17... Ndf6 {[%clk 0:01:40.4]} 18. e4 {[%clk
0:01:04.8]} 18... e5 {[%clk 0:01:33.5]} 19. c5 {[%clk 0:01:00.5]} 19... dxc5
{[%clk 0:01:17.9]} 20. dxe5 {[%clk 0:00:56.7]} 20... Nd7 {[%clk 0:01:17.1]} 21.
Qb3+ {[%clk 0:00:48.7]} 21... Kh8 {[%clk 0:01:16.8]} 22. e6 {[%clk 0:00:45.9]}
22... Nb6 {[%clk 0:01:03.8]} 23. Nh2 {[%clk 0:00:29.6]} 23... c4 {[%clk
0:00:55]} 24. Qa3 {[%clk 0:00:27.8]} 24... Bxe6 {[%clk 0:00:51.5]} 25. f3 {[%clk
0:00:25.1]} 25... Rg8 {[%clk 0:00:49.9]} 26. Kh1 {[%clk 0:00:24.7]} 26... Bf6
{[%clk 0:00:47.5]} 27. Qd6 {[%clk 0:00:22.3]} 27... Qe5 {[%clk 0:00:46.9]} 28.
Qxe5 {[%clk 0:00:08.1]} 28... Bxe5 {[%clk 0:00:47.8]} 29. Rb1 {[%clk 0:00:07.7]}
29... Rad8 {[%clk 0:00:46.2]} 30. Ng4 {[%clk 0:00:06.4]} 30... Bxg4 {[%clk
0:00:43.5]} 31. fxg4 {[%clk 0:00:07.3]} 31... Nf6 {[%clk 0:00:38]} 32. Nf3
{[%clk 0:00:07.1]} 32... Nxg4 {[%clk 0:00:35.9]} 33. Nxe5 {[%clk 0:00:07.1]}
33... Nxe5 {[%clk 0:00:36.8]} 34. Bc3 {[%clk 0:00:07.3]} 34... Nd7 {[%clk
0:00:35.5]} 35. Rxf4 {[%clk 0:00:07.8]} 35... Rdf8 {[%clk 0:00:34.7]} 36. Rbf1
{[%clk 0:00:07.1]} 36... Rxf4 {[%clk 0:00:34.3]} 37. Rxf4 {[%clk 0:00:08]} 37...
Kh7 {[%clk 0:00:27.8]} 38. Bh3 {[%clk 0:00:07.6]} 38... Kg6 {[%clk 0:00:24.5]}
39. Bf5+ {[%clk 0:00:03.9]} 39... Kh5 {[%clk 0:00:23.3]} 40. Be6 {[%clk
0:00:04.5]} 40... Rg6 {[%clk 0:00:15.8]} 41. Rf5+ {[%clk 0:00:03.2]} 41... Kxh4
{[%clk 0:00:14.3]} 42. Bxd7 {[%clk 0:00:01.8]} 42... Nxd7 {[%clk 0:00:13.4]} 43.
e5 {[%clk 0:00:02.7]} 43... Re6 {[%clk 0:00:13.1]} 44. Kg2 {[%clk 0:00:03.1]}
44... Kg4 {[%clk 0:00:11.1]} 45. Rf7 {[%clk 0:00:03.5]} 45... Nc5 {[%clk
0:00:09.9]} 46. Rh7 {[%clk 0:00:03.8]} 46... b5 {[%clk 0:00:09.2]} 47. Bd4
{[%clk 0:00:04]} 47... Nd3 {[%clk 0:00:08.7]} 48. Rxa7 {[%clk 0:00:04.2]} 48...
c5 {[%clk 0:00:09.1]} 49. Be3 {[%clk 0:00:02.4]} 49... Rxe5 {[%clk 0:00:08.6]}
50. Bxh6 {[%clk 0:00:02.7]} 50... Re2+ {[%clk 0:00:08.9]} 51. Kf1 {[%clk
0:00:02.8]} 51... Rxb2 {[%clk 0:00:09.8]} 52. Rg7+ {[%clk 0:00:02.8]} 52... Kf3
{[%clk 0:00:09.7]} 53. Rf7+ {[%clk 0:00:02.7]} 53... Ke4 {[%clk 0:00:10]} 54. a3
{[%clk 0:00:03.1]} 54... b4 {[%clk 0:00:09.7]} 55. Re7+ {[%clk 0:00:03.6]} 55...
Kd5 {[%clk 0:00:09.4]} 56. axb4 {[%clk 0:00:04.1]} 56... cxb4 {[%clk 0:00:09.6]}
57. Bg7 {[%clk 0:00:03.7]} 57... Rc2 {[%clk 0:00:09.1]} 58. Rb7 {[%clk
0:00:03.4]} 58... b3 {[%clk 0:00:09.2]} 59. Rd7+ {[%clk 0:00:03.3]} 59... Ke6
{[%clk 0:00:09]} 60. Rb7 {[%clk 0:00:03.6]} 60... b2 {[%clk 0:00:09.1]} 61. Bxb2
{[%clk 0:00:01.9]} 61... Rxb2 {[%clk 0:00:10]} 62. Rxb2 {[%clk 0:00:01.2]} 62...
Nxb2 {[%clk 0:00:09.7]} 63. Ke2 {[%clk 0:00:02.1]} 63... Kd5 {[%clk 0:00:10]}
64. Kd2 {[%clk 0:00:03]} 64... Na4 {[%clk 0:00:10.3]} 65. Kc2 {[%clk 0:00:03.4]}
65... Kd4 {[%clk 0:00:11]} 66. Kd2 {[%clk 0:00:04.1]} 66... c3+ {[%clk
0:00:11.3]} 67. Kc2 {[%clk 0:00:05]} 67... Kc4 {[%clk 0:00:11.9]} 68. Kc1 {[%clk
0:00:05.6]} 68... Kb3 {[%clk 0:00:12.8]} 69. Kb1 {[%clk 0:00:06.2]} 69... Nc5
{[%clk 0:00:13.4]} 70. Kc1 {[%clk 0:00:06.7]} 70... Nd3+ {[%clk 0:00:13.7]} 71.
Kd1 {[%clk 0:00:07.4]} 71... c2+ {[%clk 0:00:14.6]} 72. Kd2 {[%clk 0:00:08.3]}
72... c1=Q+ {[%clk 0:00:15.2]} 73. Ke2 {[%clk 0:00:08.9]} 73... Qc2+ {[%clk
0:00:15.3]} 74. Ke3 {[%clk 0:00:09.2]} 74... Qc3 {[%clk 0:00:15.5]} 75. Ke2
{[%clk 0:00:09.6]} 75... Nb4 {[%clk 0:00:16.1]} 76. Kd1 {[%clk 0:00:09.9]} 76...
Qb2 {[%clk 0:00:16.2]} 77. Ke1 {[%clk 0:00:10.2]} 77... Kc3 {[%clk 0:00:17.1]}
78. Kd1 {[%clk 0:00:10.5]} 78... Kd3 {[%clk 0:00:18]} 79. Ke1 {[%clk 0:00:10.9]}
79... Ke3 {[%clk 0:00:18]} 80. Kd1 {[%clk 0:00:10.7]} 80... Qd2# {[%clk
0:00:18.1]} 0-1

[Event "*** SCC Grand Prix: Titled Tuesday Blitz"]
[Site "Chess.com"]
[Date "2020.09.08"]
[Round "4"]
[White "Witik"]
[Black "Ladislav1969"]
[Result "1/2-1/2"]
[WhiteElo "2693"]
[BlackElo "2362"]
[TimeControl "180+1"]
[EndTime "10:41:12 PDT"]
[Termination "Game drawn - insufficient material"]

1. c3 {[%clk 0:03:00.9]} 1... c5 {[%clk 0:02:55.2]} 2. d3 {[%clk 0:03:00.2]}
2... d5 {[%clk 0:02:54.6]} 3. h3 {[%clk 0:03:00.3]} 3... Nc6 {[%clk 0:02:54.6]}
4. g4 {[%clk 0:03:00.3]} 4... h5 {[%clk 0:02:52.5]} 5. g5 {[%clk 0:02:59.8]}
5... e5 {[%clk 0:02:51.8]} 6. Bg2 {[%clk 0:02:51]} 6... Nge7 {[%clk 0:02:51]} 7.
Qb3 {[%clk 0:02:36.8]} 7... Rb8 {[%clk 0:02:41.4]} 8. a4 {[%clk 0:02:26.3]} 8...
Be6 {[%clk 0:02:40.7]} 9. Nd2 {[%clk 0:02:21.5]} 9... Ng6 {[%clk 0:02:39.5]} 10.
a5 {[%clk 0:02:11]} 10... Nf4 {[%clk 0:02:31.6]} 11. Bf1 {[%clk 0:02:09]} 11...
Qxg5 {[%clk 0:02:27]} 12. a6 {[%clk 0:02:04.6]} 12... b5 {[%clk 0:01:53.4]} 13.
Ndf3 {[%clk 0:01:51.7]} 13... Qf6 {[%clk 0:01:42.1]} 14. Qc2 {[%clk 0:01:32.8]}
14... Bd6 {[%clk 0:01:39.1]} 15. h4 {[%clk 0:01:31.4]} 15... O-O {[%clk
0:01:31.9]} 16. Ng5 {[%clk 0:01:27.7]} 16... d4 {[%clk 0:01:17.5]} 17. N1f3
{[%clk 0:01:19.3]} 17... Bd5 {[%clk 0:01:13.1]} 18. Rg1 {[%clk 0:01:12.2]} 18...
g6 {[%clk 0:01:08.4]} 19. Bd2 {[%clk 0:01:06.9]} 19... c4 {[%clk 0:01:02.5]} 20.
dxc4 {[%clk 0:00:57.1]} 20... bxc4 {[%clk 0:00:55.1]} 21. Bxf4 {[%clk
0:00:22.3]} 21... exf4 {[%clk 0:00:49.7]} 22. O-O-O {[%clk 0:00:16.4]} 22...
Bxf3 {[%clk 0:00:34.6]} 23. Nxf3 {[%clk 0:00:13.1]} 23... dxc3 {[%clk
0:00:34.5]} 24. Qxc3 {[%clk 0:00:05.2]} 24... Qxc3+ {[%clk 0:00:32.5]} 25. bxc3
{[%clk 0:00:06.1]} 25... Ba3+ {[%clk 0:00:32.4]} 26. Kd2 {[%clk 0:00:06.6]}
26... Rfd8+ {[%clk 0:00:31.4]} 27. Ke1 {[%clk 0:00:07]} 27... Bb2 {[%clk
0:00:30.7]} 28. Rxd8+ {[%clk 0:00:03.7]} 28... Rxd8 {[%clk 0:00:26]} 29. e3
{[%clk 0:00:04.6]} 29... Bxc3+ {[%clk 0:00:26.1]} 30. Ke2 {[%clk 0:00:05.3]}
30... Re8 {[%clk 0:00:20.6]} 31. Rg5 {[%clk 0:00:04.8]} 31... fxe3 {[%clk
0:00:18.2]} 32. fxe3 {[%clk 0:00:05.7]} 32... Ba5 {[%clk 0:00:17.5]} 33. Rc5
{[%clk 0:00:05.5]} 33... Re6 {[%clk 0:00:15.1]} 34. Rxc4 {[%clk 0:00:04.5]}
34... Bb6 {[%clk 0:00:14.6]} 35. Bh3 {[%clk 0:00:03.6]} 35... Rxe3+ {[%clk
0:00:13.8]} 36. Kd1 {[%clk 0:00:03.5]} 36... Rxf3 {[%clk 0:00:13.7]} 37. Bg2
{[%clk 0:00:03.6]} 37... Rd3+ {[%clk 0:00:12.9]} 38. Ke2 {[%clk 0:00:03.4]}
38... Ne5 {[%clk 0:00:13.3]} 39. Rc8+ {[%clk 0:00:03.9]} 39... Kg7 {[%clk
0:00:13.6]} 40. Be4 {[%clk 0:00:04.4]} 40... Rd4 {[%clk 0:00:13.2]} 41. Bc2
{[%clk 0:00:04.4]} 41... Ng4 {[%clk 0:00:13.2]} 42. Bb3 {[%clk 0:00:03.9]} 42...
Rf4 {[%clk 0:00:13.2]} 43. Rb8 {[%clk 0:00:04.2]} 43... Rf2+ {[%clk 0:00:13.3]}
44. Kd3 {[%clk 0:00:03.6]} 44... Ne5+ {[%clk 0:00:13.5]} 45. Ke4 {[%clk
0:00:03.6]} 45... Re2+ {[%clk 0:00:12.9]} 46. Kd5 {[%clk 0:00:03.9]} 46... Nd7
{[%clk 0:00:12.2]} 47. Rb7 {[%clk 0:00:04.1]} 47... Nf6+ {[%clk 0:00:11.3]} 48.
Kc6 {[%clk 0:00:04.1]} 48... Ne4 {[%clk 0:00:08.1]} 49. Rxf7+ {[%clk 0:00:04.1]}
49... Kh6 {[%clk 0:00:08]} 50. Rb7 {[%clk 0:00:04.9]} 50... Nc5 {[%clk
0:00:07.2]} 51. Rxb6 {[%clk 0:00:05]} 51... axb6 {[%clk 0:00:06.2]} 52. a7
{[%clk 0:00:05.6]} 52... Re8 {[%clk 0:00:06.3]} 53. Bd5 {[%clk 0:00:06]} 53...
Nd3 {[%clk 0:00:04.9]} 54. Kxb6 {[%clk 0:00:06]} 54... Ne5 {[%clk 0:00:04.5]}
55. a8=Q {[%clk 0:00:06.9]} 55... Rxa8 {[%clk 0:00:03.5]} 56. Bxa8 {[%clk
0:00:07.8]} 56... Nd3 {[%clk 0:00:03.7]} 57. Be4 {[%clk 0:00:07]} 57... Kg7
{[%clk 0:00:04.6]} 58. Bxd3 {[%clk 0:00:07.2]} 58... Kf6 {[%clk 0:00:04.9]} 59.
Kc5 {[%clk 0:00:07.1]} 59... g5 {[%clk 0:00:05.8]} 60. hxg5+ {[%clk 0:00:07.2]}
60... Kxg5 {[%clk 0:00:06]} 61. Be4 {[%clk 0:00:07.4]} 61... Kf4 {[%clk
0:00:06.2]} 62. Kd4 {[%clk 0:00:08.3]} 62... h4 {[%clk 0:00:06.6]} 63. Ba8
{[%clk 0:00:08.7]} 63... Kg3 {[%clk 0:00:07]} 64. Ke3 {[%clk 0:00:09]} 64... h3
{[%clk 0:00:06.5]} 65. Bf3 {[%clk 0:00:09.9]} 65... h2 {[%clk 0:00:06.8]} 66.
Bh1 {[%clk 0:00:10.3]} 66... Kg4 {[%clk 0:00:05.3]} 67. Kf2 {[%clk 0:00:10.3]}
67... Kg5 {[%clk 0:00:06.2]} 68. Kg3 {[%clk 0:00:10.7]} 68... Kg6 {[%clk
0:00:07.1]} 69. Kxh2 {[%clk 0:00:10.1]} 1/2-1/2

[Event "*** SCC Grand Prix: Titled Tuesday Blitz"]
[Site "Chess.com"]
[Date "2020.09.08"]
[Round "4"]
[White "Ashedu66"]
[Black "bsnsun"]
[Result "0-1"]
[WhiteElo "2182"]
[BlackElo "2399"]
[TimeControl "180+1"]
[EndTime "10:41:12 PDT"]
[Termination "bsnsun won on time"]

1. d4 {[%clk 0:03:00.9]} 1... Nf6 {[%clk 0:02:58.4]} 2. Nf3 {[%clk 0:03:00.8]}
2... e6 {[%clk 0:02:54.1]} 3. c4 {[%clk 0:03:00.7]} 3... c5 {[%clk 0:02:53.9]}
4. d5 {[%clk 0:03:00]} 4... exd5 {[%clk 0:02:54.1]} 5. cxd5 {[%clk 0:03:00.2]}
5... g6 {[%clk 0:02:54.6]} 6. Nc3 {[%clk 0:02:59.8]} 6... Bg7 {[%clk 0:02:55.2]}
7. e4 {[%clk 0:03:00]} 7... d6 {[%clk 0:02:54.7]} 8. h3 {[%clk 0:03:00.3]} 8...
O-O {[%clk 0:02:53]} 9. Bd3 {[%clk 0:03:00.3]} 9... Re8 {[%clk 0:02:48.1]} 10.
O-O {[%clk 0:03:00]} 10... Nbd7 {[%clk 0:02:48.7]} 11. Re1 {[%clk 0:02:59]}
11... a6 {[%clk 0:02:49]} 12. a4 {[%clk 0:02:58.7]} 12... Ne5 {[%clk 0:02:45.1]}
13. Nxe5 {[%clk 0:02:57.2]} 13... Rxe5 {[%clk 0:02:45.6]} 14. Bf4 {[%clk
0:02:56.8]} 14... Re8 {[%clk 0:02:45.6]} 15. Qd2 {[%clk 0:02:47.6]} 15... Qc7
{[%clk 0:02:32.8]} 16. a5 {[%clk 0:02:31]} 16... Nd7 {[%clk 0:02:26.8]} 17. Na4
{[%clk 0:02:25.5]} 17... b5 {[%clk 0:02:11.7]} 18. axb6 {[%clk 0:02:21.3]} 18...
Nxb6 {[%clk 0:02:12.4]} 19. Qa5 {[%clk 0:02:02.1]} 19... Nxd5 {[%clk 0:01:41.9]}
20. Qxc7 {[%clk 0:01:55.5]} 20... Nxc7 {[%clk 0:01:42]} 21. Bxd6 {[%clk
0:01:54.5]} 21... Ne6 {[%clk 0:01:32.8]} 22. Nb6 {[%clk 0:01:24.9]} 22... Ra7
{[%clk 0:01:31.4]} 23. e5 {[%clk 0:01:17.8]} 23... Bb7 {[%clk 0:01:21]} 24. Bc4
{[%clk 0:01:12.9]} 24... Bf8 {[%clk 0:01:05.8]} 25. Nd5 {[%clk 0:00:56.9]} 25...
Bxd5 {[%clk 0:00:56.2]} 26. Bxd5 {[%clk 0:00:56.5]} 26... Rd8 {[%clk 0:00:56.2]}
27. Bxe6 {[%clk 0:00:51]} 27... fxe6 {[%clk 0:00:48.3]} 28. Red1 {[%clk
0:00:49.6]} 28... Rb7 {[%clk 0:00:42.2]} 29. Rxa6 {[%clk 0:00:33.8]} 29... Rxb2
{[%clk 0:00:40.9]} 30. Rc6 {[%clk 0:00:31.3]} 30... Rc2 {[%clk 0:00:37.8]} 31.
Ra1 {[%clk 0:00:27.9]} 31... c4 {[%clk 0:00:36.1]} 32. Ra7 {[%clk 0:00:25.8]}
32... c3 {[%clk 0:00:20.3]} 33. Rcc7 {[%clk 0:00:20.6]} 33... Rc1+ {[%clk
0:00:20.1]} 34. Kh2 {[%clk 0:00:20.7]} 34... Rxd6 {[%clk 0:00:20.6]} 35. exd6
{[%clk 0:00:17.9]} 35... Bxd6+ {[%clk 0:00:21.1]} 36. g3 {[%clk 0:00:10.1]}
36... Bxc7 {[%clk 0:00:22]} 37. Rxc7 {[%clk 0:00:09.7]} 37... c2 {[%clk
0:00:22]} 38. Kg2 {[%clk 0:00:09.8]} 38... Kf8 {[%clk 0:00:22.3]} 39. h4 {[%clk
0:00:09.4]} 39... Ke8 {[%clk 0:00:22.1]} 40. Kf3 {[%clk 0:00:09.5]} 40... Kd8
{[%clk 0:00:22]} 41. Rc3 {[%clk 0:00:09.4]} 41... Kd7 {[%clk 0:00:22.4]} 42. Rc4
{[%clk 0:00:09]} 42... Kd6 {[%clk 0:00:22.5]} 43. Rc8 {[%clk 0:00:08.7]} 43...
Kd5 {[%clk 0:00:22.7]} 44. Rd8+ {[%clk 0:00:08.2]} 44... Kc4 {[%clk 0:00:22.6]}
45. Rc8+ {[%clk 0:00:08.1]} 45... Kb3 {[%clk 0:00:23]} 46. Rb8+ {[%clk 0:00:08]}
46... Kc3 {[%clk 0:00:23.5]} 47. Rc8+ {[%clk 0:00:08.1]} 47... Kd2 {[%clk
0:00:23.5]} 48. Rd8+ {[%clk 0:00:07.9]} 48... Ke1 {[%clk 0:00:24.1]} 49. Rc8
{[%clk 0:00:06.5]} 49... e5 {[%clk 0:00:22.4]} 50. Kg2 {[%clk 0:00:03.9]} 50...
Ke2 {[%clk 0:00:21.4]} 51. Rc5 {[%clk 0:00:03.1]} 51... e4 {[%clk 0:00:21.4]}
52. Rc8 {[%clk 0:00:02.2]} 52... Kd2 {[%clk 0:00:17.9]} 53. Rd8+ {[%clk
0:00:01.6]} 53... Kc3 {[%clk 0:00:18.4]} 54. Rc8+ {[%clk 0:00:01.9]} 54... Kd3
{[%clk 0:00:19.3]} 55. Rd8+ {[%clk 0:00:02.1]} 55... Ke2 {[%clk 0:00:19.8]} 56.
Rc8 {[%clk 0:00:02.2]} 56... h6 {[%clk 0:00:20.2]} 57. Rc7 {[%clk 0:00:02]}
57... g5 {[%clk 0:00:20.3]} 58. hxg5 {[%clk 0:00:02.2]} 58... hxg5 {[%clk
0:00:21.2]} 59. Rc8 {[%clk 0:00:02.4]} 59... Kd3 {[%clk 0:00:16.6]} 60. Rd8+
{[%clk 0:00:02.3]} 60... Kc4 {[%clk 0:00:16.7]} 61. Rc8+ {[%clk 0:00:02.4]}
61... Kd4 {[%clk 0:00:17.3]} 62. Rd8+ {[%clk 0:00:02.5]} 62... Ke5 {[%clk
0:00:18.2]} 63. Re8+ {[%clk 0:00:02]} 63... Kf5 {[%clk 0:00:18.7]} 64. Rc8
{[%clk 0:00:01.9]} 64... Kg4 {[%clk 0:00:19.2]} 0-1